Workbook

Sheet Tippek
A1: SABLONTIPPEK
A2: Lehet egyszerűen váltani a kiadási trendeket összesítő munkalap és a kiadások havi részletezései között?
A3: Ha gyorsan meg szeretné nyitni egy adott hónap kiadásait, kattintson a hozzá tartozó navigációs hivatkozásra a diagram fölött, például a Jan. navigációs hivatkozásra a B2 cellában. Ha ezután vissza szeretne lépni a Kiadási trendek munkalapra, kattintson az Összesítés navigációs hivatkozásra a D1 cellában.
A4: A tippeket tartalmazó munkalapra az összesítési munkalap N2 celláját választva léphet vissza. A havi részletező munkalapokon ehhez az E1 cellára kell kattintania.
A5: Hogyan adhatok hozzá új kiadástípust a kiadásösszesítéshez, vagy új havi kiadásokat?
A6: A diagram alatt található kiadásösszesítés és az egyes hónapok kiadásainak részletezése Excel-táblázatban található. Az Excel-táblázatokba az alábbi módon vehet fel új sorokat:
A7: =ROW(A1)&". Ha a táblázat nem tartalmaz összesítő sort, kezdjen el gépelni a táblázat alatt, amely automatikusan bővülni fog az Enter vagy a Tab billentyű lenyomásakor." -> 1. Ha a táblázat nem tartalmaz összesítő sort, kezdjen el gépelni a táblázat alatt, amely automatikusan bővülni fog az Enter vagy a Tab billentyű lenyomásakor.
A8: =ROW(A2)&". Helyezze a kurzort az összesítő sor feletti utolsó cellába, például az utolsó kiadás összegéhez, majd nyomja le a Tab billentyűt." -> 2. Helyezze a kurzort az összesítő sor feletti utolsó cellába, például az utolsó kiadás összegéhez, majd nyomja le a Tab billentyűt.
A9: =ROW(A3)&". Kattintson a jobb gombbal a táblázatra, a megjelenő menüben mutasson a „Beszúrás” pontra, és kattintson a „Táblázatsorok felülre” vagy a „Táblázatsorok alulra” parancsra." -> 3. Kattintson a jobb gombbal a táblázatra, a megjelenő menüben mutasson a „Beszúrás” pontra, és kattintson a „Táblázatsorok felülre” vagy a „Táblázatsorok alulra” parancsra.
A10: =ROW(A4)&". Helyezze az egérmutatót a táblázat jobb alsó sarkában megjelenő méretezőpontra, és húzza a pontot lefelé a rendelkezésre álló táblázatsorok számának növeléséhez." -> 4. Helyezze az egérmutatót a táblázat jobb alsó sarkában megjelenő méretezőpontra, és húzza a pontot lefelé a rendelkezésre álló táblázatsorok számának növeléséhez.
A11: Adja meg a kiadást az Összesítés munkalap Kiadásösszesítés táblázatának Kiadások oszlopában.
A12: Vegye fel az egyes kiadástípusok kiadási összegét arra a havi munkalapra, amelyre a kiadás vonatkozik.
A13: például: Az „1. kiadás” januártól júniusig és decemberben fordul elő.
A14: =ROW(A1)&". Az „1. kiadás” elemet (a kiadástípus címét) az Összesítés munkalap Kiadásösszesítés táblázatának Kiadás oszolopában adhatja meg." -> 1. Az „1. kiadás” elemet (a kiadástípus címét) az Összesítés munkalap Kiadásösszesítés táblázatának Kiadás oszolopában adhatja meg.
A15: =ROW(A2)&". Írja be a kiadás összegét a megfelelő havi munkalapba az összes olyan hónapnál, amelyben a kiadás előfordult." -> 2. Írja be a kiadás összegét a megfelelő havi munkalapba az összes olyan hónapnál, amelyben a kiadás előfordult.
A16: =ROW(A3)&". Az Összesítés munkalapon megadott kiadástípus létrehoz egy kategórialistát az egyes hónapok munkalapjának Kategória oszlopában." -> 3. Az Összesítés munkalapon megadott kiadástípus létrehoz egy kategórialistát az egyes hónapok munkalapjának Kategória oszlopában.
A17: =ROW(A4)&". A Kategória oszlopban lévő kategórialistával kiválaszthatja a megfelelő kiadástípust a beírt kiadásösszeghez." -> 4. A Kategória oszlopban lévő kategórialistával kiválaszthatja a megfelelő kiadástípust a beírt kiadásösszeghez.
A18: =ROW(A5)&". Ha szeretne új típusú kiadást megadni bármely hónapban, adjon hozzá egy új sort a Kiadásösszesítés táblázathoz az Összesítés munkalapon, majd adja meg a kiadás kívánt adatait annak a hónapnak a munkalapján, amelyben a kiadás előfordult." -> 5. Ha szeretne új típusú kiadást megadni bármely hónapban, adjon hozzá egy új sort a Kiadásösszesítés táblázathoz az Összesítés munkalapon, majd adja meg a kiadás kívánt adatait annak a hónapnak a munkalapján, amelyben a kiadás előfordult.

Sheet Összesítés
A1: KIADÁSI TRENDEK
B2: Jan. | C2: Febr. | D2: Márc. | E2: Ápr. | F2: Máj. | G2: Jún. | H2: Júl. | I2: Aug. | J2: Szept. | K2: Okt. | L2: Nov. | M2: Dec. | N2: Tippek
A4: Kiadások | B4: Jan. | C4: Febr. | D4: Márc. | E4: Ápr. | F4: Máj. | G4: Jún. | H4: Júl. | I4: Aug. | J4: Szept. | K4: Okt. | L4: Nov. | M4: Dec. | N4: Összeg | O4: Trend
A5: 1. kiadás | B5: =SUMIFS(JanKiad[Összeg],JanKiad[Kategória],Kiadásösszesítés[Kiadások]) -> 33.00 | C5: =SUMIFS(FebKiad[Összeg],FebKiad[Kategória],Kiadásösszesítés[Kiadások]) -> 375.00 | D5: =SUMIFS(MájKiad[Összeg],MájKiad[Kategória],Kiadásösszesítés[Kiadások]) -> 375.00 | E5: =SUMIFS(ÁprKiad[Összeg],ÁprKiad[Kategória],Kiadásösszesítés[Kiadások]) -> 45.00 | F5: =SUMIFS(MájKiad[Összeg],MájKiad[Kategória],Kiadásösszesítés[Kiadások]) -> 375.00 | G5: =SUMIFS(JúnKiad[Összeg],JúnKiad[Kategória],Kiadásösszesítés[Kiadások]) -> 201.00 | H5: =SUMIFS(JúlKiad[Összeg],JúlKiad[Kategória],Kiadásösszesítés[Kiadások]) -> 0.00 | I5: =SUMIFS(AugKiad[Összeg],AugKiad[Kategória],Kiadásösszesítés[Kiadások]) -> 0.00 | J5: =SUMIFS(SzeptKiad[Összeg],SzeptKiad[Kategória],Kiadásösszesítés[Kiadások]) -> 0.00 | K5: =SUMIFS(OktKiad[Összeg],OktKiad[Kategória],Kiadásösszesítés[Kiadások]) -> 0.00 | L5: =SUMIFS(NovKiad[Összeg],NovKiad[Kategória],Kiadásösszesítés[Kiadások]) -> 0.00 | M5: =SUMIFS(DecKiad[Összeg],DecKiad[Kategória],Kiadásösszesítés[Kiadások]) -> 201.00 | N5: =SUM(Kiadásösszesítés[[#This Row],[Jan.]:[Dec.]]) -> 1,605.00
A6: 2. kiadás | B6: =SUMIFS(JanKiad[Összeg],JanKiad[Kategória],Kiadásösszesítés[Kiadások]) -> 238.00 | C6: =SUMIFS(FebKiad[Összeg],FebKiad[Kategória],Kiadásösszesítés[Kiadások]) -> 238.00 | D6: =SUMIFS(MájKiad[Összeg],MájKiad[Kategória],Kiadásösszesítés[Kiadások]) -> 111.00 | E6: =SUMIFS(ÁprKiad[Összeg],ÁprKiad[Kategória],Kiadásösszesítés[Kiadások]) -> 123.00 | F6: =SUMIFS(MájKiad[Összeg],MájKiad[Kategória],Kiadásösszesítés[Kiadások]) -> 111.00 | G6: =SUMIFS(JúnKiad[Összeg],JúnKiad[Kategória],Kiadásösszesítés[Kiadások]) -> 98.00 | H6: =SUMIFS(JúlKiad[Összeg],JúlKiad[Kategória],Kiadásösszesítés[Kiadások]) -> 0.00 | I6: =SUMIFS(AugKiad[Összeg],AugKiad[Kategória],Kiadásösszesítés[Kiadások]) -> 0.00 | J6: =SUMIFS(SzeptKiad[Összeg],SzeptKiad[Kategória],Kiadásösszesítés[Kiadások]) -> 0.00 | K6: =SUMIFS(OktKiad[Összeg],OktKiad[Kategória],Kiadásösszesítés[Kiadások]) -> 0.00 | L6: =SUMIFS(NovKiad[Összeg],NovKiad[Kategória],Kiadásösszesítés[Kiadások]) -> 0.00 | M6: =SUMIFS(DecKiad[Összeg],DecKiad[Kategória],Kiadásösszesítés[Kiadások]) -> 440.00 | N6: =SUM(Kiadásösszesítés[[#This Row],[Jan.]:[Dec.]]) -> 1,359.00
A7: 3. kiadás | B7: =SUMIFS(JanKiad[Összeg],JanKiad[Kategória],Kiadásösszesítés[Kiadások]) -> 110.00 | C7: =SUMIFS(FebKiad[Összeg],FebKiad[Kategória],Kiadásösszesítés[Kiadások]) -> 110.00 | D7: =SUMIFS(MájKiad[Összeg],MájKiad[Kategória],Kiadásösszesítés[Kiadások]) -> 333.00 | E7: =SUMIFS(ÁprKiad[Összeg],ÁprKiad[Kategória],Kiadásösszesítés[Kiadások]) -> 125.00 | F7: =SUMIFS(MájKiad[Összeg],MájKiad[Kategória],Kiadásösszesítés[Kiadások]) -> 333.00 | G7: =SUMIFS(JúnKiad[Összeg],JúnKiad[Kategória],Kiadásösszesítés[Kiadások]) -> 122.00 | H7: =SUMIFS(JúlKiad[Összeg],JúlKiad[Kategória],Kiadásösszesítés[Kiadások]) -> 0.00 | I7: =SUMIFS(AugKiad[Összeg],AugKiad[Kategória],Kiadásösszesítés[Kiadások]) -> 0.00 | J7: =SUMIFS(SzeptKiad[Összeg],SzeptKiad[Kategória],Kiadásösszesítés[Kiadások]) -> 0.00 | K7: =SUMIFS(OktKiad[Összeg],OktKiad[Kategória],Kiadásösszesítés[Kiadások]) -> 0.00 | L7: =SUMIFS(NovKiad[Összeg],NovKiad[Kategória],Kiadásösszesítés[Kiadások]) -> 0.00 | M7: =SUMIFS(DecKiad[Összeg],DecKiad[Kategória],Kiadásösszesítés[Kiadások]) -> 122.00 | N7: =SUM(Kiadásösszesítés[[#This Row],[Jan.]:[Dec.]]) -> 1,255.00
A8: 4. kiadás | B8: =SUMIFS(JanKiad[Összeg],JanKiad[Kategória],Kiadásösszesítés[Kiadások]) -> 426.00 | C8: =SUMIFS(FebKiad[Összeg],FebKiad[Kategória],Kiadásösszesítés[Kiadások]) -> 84.00 | D8: =SUMIFS(MájKiad[Összeg],MájKiad[Kategória],Kiadásösszesítés[Kiadások]) -> 125.00 | E8: =SUMIFS(ÁprKiad[Összeg],ÁprKiad[Kategória],Kiadásösszesítés[Kiadások]) -> 426.00 | F8: =SUMIFS(MájKiad[Összeg],MájKiad[Kategória],Kiadásösszesítés[Kiadások]) -> 125.00 | G8: =SUMIFS(JúnKiad[Összeg],JúnKiad[Kategória],Kiadásösszesítés[Kiadások]) -> 187.00 | H8: =SUMIFS(JúlKiad[Összeg],JúlKiad[Kategória],Kiadásösszesítés[Kiadások]) -> 0.00 | I8: =SUMIFS(AugKiad[Összeg],AugKiad[Kategória],Kiadásösszesítés[Kiadások]) -> 0.00 | J8: =SUMIFS(SzeptKiad[Összeg],SzeptKiad[Kategória],Kiadásösszesítés[Kiadások]) -> 0.00 | K8: =SUMIFS(OktKiad[Összeg],OktKiad[Kategória],Kiadásösszesítés[Kiadások]) -> 0.00 | L8: =SUMIFS(NovKiad[Összeg],NovKiad[Kategória],Kiadásösszesítés[Kiadások]) -> 0.00 | M8: =SUMIFS(DecKiad[Összeg],DecKiad[Kategória],Kiadásösszesítés[Kiadások]) -> 187.00 | N8: =SUM(Kiadásösszesítés[[#This Row],[Jan.]:[Dec.]]) -> 1,560.00
A9: 5. kiadás | B9: =SUMIFS(JanKiad[Összeg],JanKiad[Kategória],Kiadásösszesítés[Kiadások]) -> 54.00 | C9: =SUMIFS(FebKiad[Összeg],FebKiad[Kategória],Kiadásösszesítés[Kiadások]) -> 54.00 | D9: =SUMIFS(MájKiad[Összeg],MájKiad[Kategória],Kiadásösszesítés[Kiadások]) -> 33.00 | E9: =SUMIFS(ÁprKiad[Összeg],ÁprKiad[Kategória],Kiadásösszesítés[Kiadások]) -> 98.00 | F9: =SUMIFS(MájKiad[Összeg],MájKiad[Kategória],Kiadásösszesítés[Kiadások]) -> 33.00 | G9: =SUMIFS(JúnKiad[Összeg],JúnKiad[Kategória],Kiadásösszesítés[Kiadások]) -> 441.00 | H9: =SUMIFS(JúlKiad[Összeg],JúlKiad[Kategória],Kiadásösszesítés[Kiadások]) -> 0.00 | I9: =SUMIFS(AugKiad[Összeg],AugKiad[Kategória],Kiadásösszesítés[Kiadások]) -> 0.00 | J9: =SUMIFS(SzeptKiad[Összeg],SzeptKiad[Kategória],Kiadásösszesítés[Kiadások]) -> 0.00 | K9: =SUMIFS(OktKiad[Összeg],OktKiad[Kategória],Kiadásösszesítés[Kiadások]) -> 0.00 | L9: =SUMIFS(NovKiad[Összeg],NovKiad[Kategória],Kiadásösszesítés[Kiadások]) -> 0.00 | M9: =SUMIFS(DecKiad[Összeg],DecKiad[Kategória],Kiadásösszesítés[Kiadások]) -> 99.00 | N9: =SUM(Kiadásösszesítés[[#This Row],[Jan.]:[Dec.]]) -> 812.00
A10: Összeg | B10: =SUBTOTAL(109,Kiadásösszesítés[Jan.]) -> 861.00 | C10: =SUBTOTAL(109,Kiadásösszesítés[Febr.]) -> 861.00 | D10: =SUBTOTAL(109,Kiadásösszesítés[Márc.]) -> 977.00 | E10: =SUBTOTAL(109,Kiadásösszesítés[Ápr.]) -> 817.00 | F10: =SUBTOTAL(109,Kiadásösszesítés[Máj.]) -> 977.00 | G10: =SUBTOTAL(109,Kiadásösszesítés[Jún.]) -> 1,049.00 | H10: =SUBTOTAL(109,Kiadásösszesítés[Júl.]) -> 0.00 | I10: =SUBTOTAL(109,Kiadásösszesítés[Aug.]) -> 0.00 | J10: =SUBTOTAL(109,Kiadásösszesítés[Szept.]) -> 0.00 | K10: =SUBTOTAL(109,Kiadásösszesítés[Okt.]) -> 0.00 | L10: =SUBTOTAL(109,Kiadásösszesítés[Nov.]) -> 0.00 | M10: =SUBTOTAL(109,Kiadásösszesítés[Dec.]) -> 1,049.00 | N10: =SUBTOTAL(109,Kiadásösszesítés[Összeg]) -> 6,591.00

Sheet Jan.
A1: JANUÁRI KIADÁSOK | D1: Összesítés | E1: Tippek
A2: Dátum | B2: Rendelésszám | C2: Összeg | D2: Kategória | E2: Leírás
A3: =DATE(YEAR(TODAY()),1,4) -> 2017-01-04 | B3: A-12345 | C3: 33.00 | D3: 1. kiadás | E3: Kellékek
A4: =DATE(YEAR(TODAY()),1,5) -> 2017-01-05 | B4: A-12346 | C4: 238.00 | D4: 2. kiadás
C5: 342.00 | D5: 4. kiadás
C6: 110.00 | D6: 3. kiadás
C7: 84.00 | D7: 4. kiadás
C8: 54.00 | D8: 5. kiadás
A9: Összeg | C9: =SUBTOTAL(109,JanKiad[Összeg]) -> 861.00

Sheet Febr.
A1: FEBRUÁRI KIADÁSOK | D1: Összesítés | E1: Tippek
A2: Dátum | B2: Rendelésszám | C2: Összeg | D2: Kategória | E2: Leírás
A3: =DATE(YEAR(TODAY()),2,3) -> 2017-02-03 | B3: A-12345 | C3: 33.00 | D3: 1. kiadás | E3: Kellékek
A4: =DATE(YEAR(TODAY()),2,4) -> 2017-02-04 | B4: A-12346 | C4: 238.00 | D4: 2. kiadás
C5: 342.00 | D5: 1. kiadás
C6: 110.00 | D6: 3. kiadás
C7: 84.00 | D7: 4. kiadás
C8: 54.00 | D8: 5. kiadás
A9: Összeg | C9: =SUBTOTAL(109,FebKiad[Összeg]) -> 861.00

Sheet Márc.
A1: MÁRCIUSI KIADÁSOK | D1: Összesítés | E1: Tippek
A2: Dátum | B2: Rendelésszám | C2: Összeg | D2: Kategória | E2: Leírás
A3: =DATE(YEAR(TODAY()),3,5) -> 2017-03-05 | B3: A-12345 | C3: 33.00 | D3: 1. kiadás | E3: Kellékek
A4: =DATE(YEAR(TODAY()),3,6) -> 2017-03-06 | B4: A-12346 | C4: 238.00 | D4: 2. kiadás
C5: 55.00 | D5: 5. kiadás
C6: 110.00 | D6: 3. kiadás
C7: 84.00 | D7: 4. kiadás
C8: 54.00 | D8: 5. kiadás
A9: Összeg | C9: =SUBTOTAL(109,MárcKiad[Összeg]) -> 574.00

Sheet Ápr.
A1: ÁPRILISI KIADÁSOK | D1: Összesítés | E1: Tippek
A2: Dátum | B2: Rendelésszám | C2: Összeg | D2: Kategória | E2: Leírás
A3: =DATE(YEAR(TODAY()),4,4) -> 2017-04-04 | B3: A-12345 | C3: 45.00 | D3: 1. kiadás | E3: Kellékek
A4: =DATE(YEAR(TODAY()),4,8) -> 2017-04-08 | B4: A-12346 | C4: 123.00 | D4: 2. kiadás
C5: 342.00 | D5: 4. kiadás
C6: 125.00 | D6: 3. kiadás
C7: 84.00 | D7: 4. kiadás
C8: 98.00 | D8: 5. kiadás
A9: Összeg | C9: =SUBTOTAL(109,ÁprKiad[Összeg]) -> 817.00

Sheet Máj.
A1: MÁJUSI KIADÁSOK | D1: Összesítés | E1: Tippek
A2: Dátum | B2: Rendelésszám | C2: Összeg | D2: Kategória | E2: Leírás
A3: =DATE(YEAR(TODAY()),5,3) -> 2017-05-03 | B3: A-12345 | C3: 33.00 | D3: 1. kiadás | E3: Kellékek
A4: =DATE(YEAR(TODAY()),5,8) -> 2017-05-08 | B4: A-12346 | C4: 111.00 | D4: 2. kiadás
C5: 342.00 | D5: 1. kiadás
C6: 333.00 | D6: 3. kiadás
C7: 125.00 | D7: 4. kiadás
C8: 33.00 | D8: 5. kiadás
A9: Összeg | C9: =SUBTOTAL(109,MájKiad[Összeg]) -> 977.00

Sheet Jún.
A1: JÚNIUSI KIADÁSOK | D1: Összesítés | E1: Tippek
A2: Dátum | B2: Rendelésszám | C2: Összeg | D2: Kategória | E2: Leírás
A3: =DATE(YEAR(TODAY()),6,7) -> 2017-06-07 | B3: A-12345 | C3: 201.00 | D3: 1. kiadás | E3: Kellékek
A4: =DATE(YEAR(TODAY()),6,8) -> 2017-06-08 | B4: A-12346 | C4: 98.00 | D4: 2. kiadás
C5: 342.00 | D5: 5. kiadás
C6: 122.00 | D6: 3. kiadás
C7: 187.00 | D7: 4. kiadás
C8: 99.00 | D8: 5. kiadás
A9: Összeg | C9: =SUBTOTAL(109,JúnKiad[Összeg]) -> 1,049.00

Sheet Júl.
A1: JÚLIUSI KIADÁSOK | D1: Összesítés | E1: Tippek
A2: Dátum | B2: Rendelésszám | C2: Összeg | D2: Kategória | E2: Leírás
A3: =DATE(YEAR(TODAY()),7,9) -> 2017-07-09 | B3: A-12345 | D3: 1. kiadás | E3: Kellékek
A4: =DATE(YEAR(TODAY()),7,14) -> 2017-07-14 | B4: A-12346 | D4: 2. kiadás
D5: 2. kiadás
D6: 3. kiadás
D7: 4. kiadás
D8: 5. kiadás
A9: Összeg | C9: =SUBTOTAL(109,JúlKiad[Összeg]) -> 0.00

Sheet Sug.
A1: AUGUSZTUSI KIADÁSOK | D1: Összesítés | E1: Tippek
A2: Dátum | B2: Rendelésszám | C2: Összeg | D2: Kategória | E2: Leírás
A3: =DATE(YEAR(TODAY()),8,8) -> 2017-08-08 | B3: A-12345 | D3: 1. kiadás | E3: Kellékek
A4: =DATE(YEAR(TODAY()),8,9) -> 2017-08-09 | B4: A-12346 | D4: 2. kiadás
D5: 2. kiadás
D6: 3. kiadás
D7: 4. kiadás
D8: 5. kiadás
A9: Összeg | C9: =SUBTOTAL(109,AugKiad[Összeg]) -> 0.00

Sheet Szept.
A1: SZEPTEMBERI KIADÁSOK | D1: Összesítés | E1: Tippek
A2: Dátum | B2: Rendelésszám | C2: Összeg | D2: Kategória | E2: Leírás
A3: =DATE(YEAR(TODAY()),9,9) -> 2017-09-09 | B3: A-12345 | D3: 1. kiadás | E3: Kellékek
A4: =DATE(YEAR(TODAY()),9,15) -> 2017-09-15 | B4: A-12346 | D4: 2. kiadás
D5: 2. kiadás
D6: 3. kiadás
D7: 4. kiadás
D8: 5. kiadás
A9: Összeg | C9: =SUBTOTAL(109,SzeptKiad[Összeg]) -> 0.00

Sheet Okt.
A1: OKTÓBERI KIADÁSOK | D1: Összesítés | E1: Tippek
A2: Dátum | B2: Rendelésszám | C2: Összeg | D2: Kategória | E2: Leírás
A3: =DATE(YEAR(TODAY()),10,10) -> 2017-10-10 | B3: A-12345 | D3: 1. kiadás | E3: Kellékek
A4: =DATE(YEAR(TODAY()),10,21) -> 2017-10-21 | B4: A-12346 | D4: 2. kiadás
D5: 2. kiadás
D6: 3. kiadás
D7: 4. kiadás
D8: 5. kiadás
A9: Összeg | C9: =SUBTOTAL(109,OktKiad[Összeg]) -> 0.00

Sheet Nov.
A1: NOVEMBERI KIADÁSOK | D1: Összesítés | E1: Tippek
A2: Dátum | B2: Rendelésszám | C2: Összeg | D2: Kategória | E2: Leírás
A3: =DATE(YEAR(TODAY()),11,14) -> 2017-11-14 | B3: A-12345 | D3: 1. kiadás | E3: Kellékek
A4: =DATE(YEAR(TODAY()),11,21) -> 2017-11-21 | B4: A-12346 | D4: 2. kiadás
D5: 2. kiadás
D6: 3. kiadás
D7: 4. kiadás
D8: 5. kiadás
A9: Összeg | C9: =SUBTOTAL(109,NovKiad[Összeg]) -> 0.00

Sheet Dec.
A1: DECEMBERI KIADÁSOK | D1: Összesítés | E1: Tippek
A2: Dátum | B2: Rendelésszám | C2: Összeg | D2: Kategória | E2: Leírás
A3: =DATE(YEAR(TODAY()),12,2) -> 2017-12-02 | B3: A-12345 | C3: 201.00 | D3: 1. kiadás | E3: Kellékek
A4: =DATE(YEAR(TODAY()),12,24) -> 2017-12-24 | B4: A-12346 | C4: 98.00 | D4: 2. kiadás
C5: 342.00 | D5: 2. kiadás
C6: 122.00 | D6: 3. kiadás
C7: 187.00 | D7: 4. kiadás
C8: 99.00 | D8: 5. kiadás
A9: Összeg | C9: =SUBTOTAL(109,DecKiad[Összeg]) -> 1,049.00
